bitfinex-derivatives/quotes_BTCF0:USTF0_20241021
["timestamp","ask_amount","ask_price","bid_price","bid_amount"]
[1729481420808,0.0801223,68894.0,68890.0,0.46006284]
[1729481420997,0.0801223,68893.0,68890.0,0.46406284]
[1729481421196,0.0801223,68892.0,68890.0,0.46406284]
[1729481421401,0.0801223,68891.0,68890.0,0.46006284]
[1729481421608,0.0801223,68891.0,68890.0,0.45606284]
[1729481422120,0.0801223,68896.0,68890.0,0.45606284]
[1729481422607,0.0801223,68896.0,68890.0,0.46206284]
[1729481424006,0.072583,68897.0,68891.0,0.18324005]
[1729481424312,0.072583,68897.0,68896.0,0.0580884]
[1729481424507,0.072583,68897.0,68891.0,0.07259366]
[1729481424709,0.072583,68897.0,68890.0,0.6501765]
[1729481425110,0.072583,68897.0,68896.0,0.05808837]
[1729481426616,0.072583,68897.0,68890.0,0.57358284]
[1729481426617,0.072583,68897.0,68893.0,0.07259366]
[1729481427010,0.072583,68897.0,68890.0,0.57358284]
[1729481427011,0.072583,68897.0,68896.0,0.05808698]
[1729481428613,0.868823,68897.0,68896.0,0.05808698]
[1729481428919,0.868823,68897.0,68879.0,0.07259366]
[1729481428920,1.39624,68897.0,68879.0,0.07259366]
[1729481429215,0.072603,68878.0,68876.0,0.02475339]
[1729481429420,0.072603,68878.0,68876.0,0.0021775]
[1729481429611,0.072596,68884.0,68876.0,0.0021775]
[1729481430924,0.072596,68884.0,68879.0,0.001]
[1729481431313,0.072596,68884.0,68880.0,0.0316]
[1729481431818,0.3608,68886.0,68880.0,0.0316]
[1729481432015,0.072598,68883.0,68880.0,0.0316]
[1729481432316,0.03556367,68882.0,68880.0,0.0316]
[1729481432508,0.03556367,68881.0,68880.0,0.0316]
[1729481433208,0.0726,68880.0,68879.0,0.02498669]
[1729481433418,0.0726,68880.0,68879.0,0.002]
[1729481433419,0.10816367,68880.0,68879.0,0.002]
[1729481433713,0.10816367,68880.0,68879.0,0.001]
[1729481434220,0.10816367,68880.0,68876.0,0.0021775]
[1729481434519,0.03556367,68879.0,68876.0,0.0021775]
[1729481435313,0.03556367,68879.0,68876.0,0.02493421]
[1729481435920,0.03556367,68879.0,68876.0,0.02993421]
[1729481437221,0.072602,68879.0,68876.0,0.03493421]
[1729481437916,0.072603,68878.0,68876.0,0.03493421]
[1729481439220,0.03626885,68878.0,68876.0,0.03593421]
[1729481440725,0.03626885,68878.0,68876.0,0.03693421]
[1729481441215,0.03576885,68878.0,68876.0,0.03693421]
[1729481448022,0.03556491,68877.0,68876.0,0.03693421]
[1729481450121,0.03556491,68877.0,68876.0,0.03793421]
[1729481450918,0.03556491,68877.0,68876.0,0.03893421]
[1729481454128,0.03576885,68878.0,68876.0,0.0161775]
[1729481455524,0.03576885,68878.0,68876.0,0.0091775]
[1729481455723,0.03576885,68878.0,68876.0,0.0151775]
[1729481456322,0.03576885,68878.0,68876.0,0.08077116]
[1729481456618,0.03576885,68878.0,68876.0,0.08677116]
[1729481457118,0.05901905,68878.0,68876.0,0.08677116]
[1729481457330,0.05901905,68878.0,68877.0,0.18324866]
[1729481457623,0.05901905,68878.0,68877.0,0.18324942]
[1729481457828,0.03576885,68878.0,68877.0,0.18324942]
[1729481458230,0.03576885,68878.0,68877.0,0.11068168]
[1729481458924,0.03576885,68878.0,68877.0,0.11668168]
[1729481459721,0.03576885,68878.0,68877.0,0.12268168]
[1729481462139,0.11591585,68878.0,68877.0,0.012]
[1729481466044,0.11591372,68878.0,68877.0,0.012]
[1729481469040,0.03576885,68878.0,68877.0,0.012]
[1729481469233,0.03576885,68878.0,68877.0,0.12267859]
[1729481470734,0.03576885,68878.0,68877.0,0.12268129]
[1729481471234,0.03576885,68878.0,68877.0,0.19531261]
[1729481471434,0.03576885,68878.0,68877.0,0.12268129]
[1729481472227,0.03576885,68878.0,68877.0,0.19531044]
[1729481477240,0.03576885,68878.0,68877.0,0.012]
[1729481484138,0.11591674,68878.0,68877.0,0.012]
[1729481485353,0.16800913,68878.0,68877.0,0.012]
[1729481485554,0.16800915,68878.0,68877.0,0.012]
[1729481487548,0.11591676,68878.0,68877.0,0.012]
[1729481487754,0.16800915,68878.0,68877.0,0.012]
[1729481492156,0.03576885,68878.0,68877.0,0.195311]
[1729481493454,0.03576885,68878.0,68877.0,0.08462915]
[1729481494859,0.03576885,68878.0,68877.0,0.19531101]
[1729481495462,0.03576885,68878.0,68877.0,0.19531088]
[1729481496255,0.03576885,68878.0,68877.0,0.19531077]
[1729481498351,0.03576885,68878.0,68877.0,0.12268162]
[1729481499151,0.03576885,68878.0,68877.0,0.012]
[1729481501648,0.433392,68888.0,68880.0,0.0726]
[1729481501953,0.433392,68888.0,68877.0,0.3728]
[1729481501954,0.00217829,68892.0,68883.0,0.3608]
[1729481502152,0.072591,68889.0,68883.0,0.43345404]
[1729481502468,0.00217829,68892.0,68886.0,0.0580608]
[1729481502761,0.00217829,68892.0,68887.0,0.0580608]
[1729481502956,0.002,68888.0,68887.0,0.0580608]
[1729481503258,0.002,68888.0,68885.0,0.0580608]
[1729481503460,0.00217829,68892.0,68885.0,0.0580608]
[1729481503656,0.00417829,68892.0,68886.0,0.001]
[1729481504055,0.00217829,68892.0,68885.0,0.0580608]
[1729481504251,0.00217829,68892.0,68883.0,0.434357]
[1729481504252,0.002,68888.0,68884.0,0.0580608]
[1729481504662,0.002,68888.0,68885.0,0.072595]
[1729481504862,0.002,68888.0,68886.0,0.072594]
[1729481505866,0.00217829,68892.0,68885.0,0.0580608]
[1729481506063,0.00417829,68892.0,68887.0,0.072593]
[1729481506655,0.002,68888.0,68887.0,0.072593]
[1729481507264,0.00217829,68892.0,68887.0,0.072593]
[1729481507265,0.00417829,68892.0,68887.0,0.073593]
[1729481507568,0.08012803,68891.0,68887.0,0.073593]
[1729481507757,0.08012803,68891.0,68887.0,0.072593]
[1729481507959,0.002,68888.0,68887.0,0.072593]
[1729481508372,0.002,68888.0,68887.0,0.508073]
[1729481508553,0.03755822,68888.0,68887.0,0.508073]
[1729481509059,0.03755822,68888.0,68887.0,0.072593]
[1729481509367,0.03555822,68888.0,68887.0,0.073593]
[1729481509963,0.0375582,68888.0,68887.0,0.072593]
[1729481510366,0.0375582,68888.0,68884.0,0.02319576]
[1729481510553,0.0355582,68887.0,68883.0,0.3608]
[1729481510760,0.0355582,68886.0,68883.0,0.3608]
[1729481511059,0.0355582,68885.0,68883.0,0.3608]
[1729481511267,0.074592,68888.0,68884.0,0.1162]
[1729481511459,0.08013187,68887.0,68884.0,0.1162]
[1729481511855,0.03555992,68886.0,68884.0,0.1162]
[1729481512065,0.074592,68888.0,68884.0,0.1162]
[1729481512066,0.03555992,68885.0,68884.0,0.1162]
[1729481512671,0.03555992,68885.0,68884.0,0.55172]
[1729481514166,0.03655992,68885.0,68884.0,0.55172]
[1729481514368,0.001,68885.0,68884.0,0.55172]
[1729481515865,0.001,68885.0,68884.0,0.1162]
[1729481516372,0.001,68885.0,68884.0,0.55172]
[1729481519273,0.001,68885.0,68884.0,0.1162]
[1729481522864,0.03655898,68885.0,68884.0,0.1162]
[1729481524876,0.03655898,68885.0,68884.0,0.477]
[1729481528085,0.03655916,68885.0,68884.0,0.477]
[1729481528972,0.03655916,68885.0,68884.0,0.549596]
[1729481529281,0.03655916,68885.0,68884.0,0.62225004]
[1729481529282,0.001,68885.0,68884.0,0.62225004]
[1729481529588,0.001,68885.0,68884.0,0.549596]
[1729481529779,0.001,68885.0,68884.0,0.62225004]
[1729481530382,0.001,68885.0,68884.0,0.66024856]
[1729481532980,0.001,68885.0,68884.0,1.09576925]
[1729481533295,0.001,68885.0,68884.0,0.66024925]
[1729481536181,0.00217829,68892.0,68889.0,0.07259]
[1729481536476,0.00217829,68892.0,68884.0,0.58765325]
[1729481536477,0.00217829,68892.0,68890.0,0.07259]
[1729481537087,0.00217829,68892.0,68891.0,0.05807031]
[1729481537388,0.00217829,68892.0,68890.0,0.07259]
[1729481537687,0.08012531,68891.0,68890.0,0.07359]
[1729481538383,0.15924377,68891.0,68890.0,0.07359]
[1729481538585,0.23936908,68891.0,68890.0,0.07359]
[1729481538886,0.08012531,68891.0,68890.0,0.07359]
[1729481539192,0.08012531,68891.0,68890.0,0.07259]
[1729481539193,0.08212531,68891.0,68890.0,0.07259]
[1729481539489,0.08212531,68891.0,68890.0,0.09532983]
[1729481539895,0.08212531,68891.0,68890.0,0.09632983]
[1729481540076,0.16123766,68891.0,68890.0,0.09632983]
[1729481540276,0.20580596,68891.0,68890.0,0.09632983]
[1729481540479,0.002,68891.0,68890.0,0.09632983]
[1729481540689,0.08212531,68891.0,68890.0,0.09632983]
[1729481542202,0.08212531,68891.0,68890.0,0.21236983]
[1729481542892,0.08212475,68891.0,68890.0,0.21236983]
[1729481543296,0.072563,68916.0,68890.0,1.17525983]
[1729481543606,0.15923766,68909.0,68906.0,0.3608]
[1729481543889,0.134461,68918.0,68907.0,0.188612]
[1729481543890,0.15923766,68910.0,68907.0,0.188612]
[1729481544092,0.0619,68918.0,68907.0,0.188612]
[1729481544296,0.0619,68918.0,68913.0,0.05806952]
[1729481544794,0.002,68916.0,68914.0,0.05806952]
[1729481545186,0.002,68916.0,68912.0,0.433366]
[1729481545396,0.002,68916.0,68913.0,0.072565]
[1729481545587,0.002,68918.0,68913.0,0.073565]
[1729481545783,0.002,68918.0,68913.0,0.001]
[1729481545984,0.002,68918.0,68914.0,0.11604]
[1729481546187,0.001,68916.0,68914.0,0.11604]
[1729481546884,0.002,68918.0,68914.0,0.11604]
[1729481546885,0.003,68918.0,68914.0,0.11604]
[1729481547290,0.00217687,68926.0,68914.0,0.11604]
[1729481547486,0.001,68916.0,68914.0,0.11604]
[1729481547886,0.07472987,68926.0,68914.0,0.11604]
[1729481548093,0.001,68918.0,68915.0,0.116]
[1729481548313,0.001,68918.0,68914.0,0.001]
[1729481548592,0.001,68918.0,68915.0,0.116]
[1729481549594,0.00217687,68926.0,68915.0,0.116]
[1729481549793,0.001,68916.0,68915.0,0.116]
[1729481550296,0.00217687,68926.0,68915.0,0.117]
[1729481550297,0.001,68918.0,68915.0,0.117]
[1729481550598,0.001,68918.0,68915.0,0.118]
[1729481550989,0.00217687,68926.0,68916.0,0.115]
[1729481552296,0.00217687,68926.0,68916.0,0.116]
[1729481552702,0.00217687,68926.0,68916.0,0.188562]
[1729481552894,0.00217687,68926.0,68917.0,0.072561]
[1729481553596,0.00217687,68926.0,68918.0,0.07256]
[1729481554600,0.00217687,68926.0,68919.0,0.072559]
[1729481554800,0.07472887,68926.0,68919.0,0.072559]
[1729481556992,0.07472887,68926.0,68919.0,0.073559]
[1729481557190,0.07472887,68926.0,68919.0,0.074559]
[1729481558098,0.07472887,68926.0,68924.0,0.072554]
[1729481558099,0.00217687,68926.0,68924.0,0.072554]
[1729481559288,0.00217687,68926.0,68924.0,0.073554]
[1729481559494,0.08008927,68925.0,68924.0,0.073554]
[1729481560187,0.08008927,68925.0,68924.0,0.074554]
[1729481560392,0.08008927,68925.0,68924.0,0.002]
[1729481561492,0.08008927,68925.0,68924.0,0.02522448]
[1729481561799,0.08008927,68925.0,68924.0,0.002]
[1729481561800,0.08009209,68925.0,68924.0,0.002]
[1729481564600,0.08009209,68925.0,68924.0,0.02499471]
[1729481564797,0.08009209,68925.0,68924.0,0.002]
[1729481566390,0.08009209,68925.0,68924.0,0.02468164]
[1729481566591,0.08009209,68925.0,68923.0,0.3608]
[1729481566792,0.00217687,68926.0,68924.0,0.0322]
[1729481567005,0.00217687,68926.0,68924.0,0.104754]
[1729481567211,0.0800778,68925.0,68924.0,0.104754]
[1729481567413,0.00217687,68926.0,68924.0,0.104754]
[1729481569191,0.00217687,68926.0,68924.0,0.105754]
[1729481569192,0.00317687,68926.0,68924.0,0.105754]
[1729481569803,0.00217687,68926.0,68924.0,0.114754]
[1729481570607,0.00217687,68926.0,68925.0,0.43524]
[1729481570993,0.072536,68941.0,68925.0,0.44247592]
[1729481571310,0.0631,68950.0,68940.0,0.3608]
[1729481571505,0.00743998,68954.0,68941.0,0.15428]
[1729481571710,0.00362,68949.0,68941.0,0.21528]
[1729481572009,0.00362,68949.0,68944.0,0.072532]
[1729481573194,0.00362,68949.0,68941.0,0.21628]
[1729481573195,0.072535,68943.0,68941.0,0.04437028]
[1729481573501,0.3608,68945.0,68935.0,0.072542]
[1729481573502,0.0626,68942.0,68935.0,0.072542]
[1729481573701,0.00462,68949.0,68935.0,0.02297226]
[1729481573896,0.00462,68949.0,68936.0,0.287781]
[1729481573897,0.072529,68948.0,68936.0,0.287781]
[1729481574102,0.072531,68947.0,68936.0,0.287781]
[1729481574299,0.072531,68947.0,68944.0,0.001]
[1729481574601,0.15865759,68945.0,68944.0,0.12224]
[1729481574804,0.0800633,68945.0,68944.0,0.12224]
[1729481575804,0.19518708,68945.0,68944.0,0.12224]
[1729481576108,0.23972089,68945.0,68944.0,0.12224]
[1729481576293,0.0810633,68945.0,68944.0,0.12224]
[1729481576695,0.23972089,68945.0,68944.0,0.12224]
[1729481576900,0.0820633,68945.0,68944.0,0.08901012]
[1729481578510,0.0620633,68945.0,68944.0,0.08901012]
[1729481578709,0.03652949,68945.0,68944.0,0.08901012]
[1729481579611,0.03652949,68945.0,68944.0,0.002]
[1729481582417,0.03652949,68945.0,68944.0,0.12324]
[1729481582717,0.072531,68946.0,68944.0,0.002]
[1729481583509,0.0319,68945.0,68944.0,0.002]
[1729481584013,0.0319,68945.0,68944.0,0.001]
[1729481584215,0.0319,68945.0,68944.0,0.002]
[1729481584519,0.0319,68945.0,68940.0,0.05777583]
[1729481584520,0.46702,68945.0,68940.0,0.05777583]
[1729481584704,0.3608,68941.0,68938.0,0.05777583]
[1729481584914,0.072538,68939.0,68937.0,0.05777583]
[1729481585608,0.072538,68939.0,68937.0,0.05779664]
[1729481585815,0.072538,68939.0,68938.0,0.001]
[1729481587216,0.072538,68939.0,68937.0,0.001]
[1729481588811,0.073538,68939.0,68938.0,0.001]
[1729481589121,0.074538,68939.0,68938.0,0.002]
[1729481589622,0.072546,68932.0,68931.0,0.05779664]
[1729481589806,0.43616,68939.0,68937.0,0.001]
[1729481589807,0.07254,68938.0,68937.0,0.001]
[1729481590012,0.003,68939.0,68937.0,0.001]
[1729481590205,0.003,68939.0,68938.0,0.001]
[1729481590417,0.003,68939.0,68938.0,0.0588255]
[1729481590805,0.002,68939.0,68937.0,0.001]
[1729481591013,0.002,68939.0,68937.0,0.02320733]
[1729481591208,0.002,68939.0,68937.0,0.001]
[1729481592121,0.072536,68942.0,68936.0,0.103341]
[1729481592318,0.3608,68947.0,68941.0,0.05784728]
[1729481592511,0.3608,68947.0,68944.0,0.05784728]
[1729481593322,0.3608,68947.0,68945.0,0.05784728]
[1729481593513,0.3608,68947.0,68946.0,0.05784728]
[1729481593713,0.3638,68947.0,68944.0,0.073533]
[1729481593914,0.3668,68947.0,68944.0,0.074533]
[1729481594416,0.3668,68947.0,68944.0,0.09759777]
[1729481595025,0.3668,68947.0,68944.0,0.02506477]
[1729481595220,0.07853,68947.0,68944.0,0.02506477]
[1729481595417,0.07553,68947.0,68944.0,0.02406477]
[1729481595617,0.07753,68947.0,68946.0,0.001]
[1729481596310,0.072531,68946.0,68944.0,0.02406477]
[1729481596518,0.072531,68946.0,68944.0,0.002]
[1729481596824,0.072531,68946.0,68945.0,0.05792492]
[1729481597024,0.072531,68946.0,68944.0,0.001]
[1729481597323,0.072531,68946.0,68942.0,0.07258977]
[1729481597324,0.072534,68943.0,68942.0,0.07258977]
[1729481597529,0.10806518,68943.0,68940.0,0.02250016]
[1729481597715,0.03553118,68942.0,68937.0,0.20206]
[1729481598420,0.072534,68943.0,68937.0,0.20206]
[1729481598725,0.072534,68943.0,68937.0,0.22428118]
[1729481599917,0.076534,68943.0,68940.0,0.001]
[1729481600331,0.072535,68942.0,68940.0,0.001]
[1729481600517,0.072535,68942.0,68937.0,0.15374118]
[1729481601020,0.072535,68942.0,68937.0,0.15274118]
[1729481601218,0.072535,68942.0,68940.0,0.001]
[1729481602228,0.072535,68942.0,68940.0,0.002]
[1729481602620,0.072535,68942.0,68940.0,0.001]
[1729481602922,0.074535,68942.0,68938.0,0.12952]
[1729481603122,0.076535,68942.0,68940.0,0.001]
[1729481603327,0.076535,68942.0,68940.0,0.002]
[1729481604724,0.076535,68942.0,68940.0,0.07458977]
[1729481604928,0.076535,68942.0,68941.0,0.07258977]
[1729481606035,0.076535,68942.0,68941.0,0.18316102]
[1729481606233,0.00362,68948.0,68941.0,0.54573125]
[1729481606420,0.00362,68948.0,68947.0,0.4332396]
[1729481606725,0.00362,68948.0,68947.0,0.11055926]
[1729481606933,0.00217591,68953.0,68947.0,0.11055926]
[1729481607226,0.00217591,68953.0,68949.0,0.07243197]
[1729481607724,0.00362,68952.0,68949.0,0.07243197]
[1729481609125,0.00362,68952.0,68949.0,0.07343197]
[1729481610328,0.00362,68952.0,68949.0,0.09694227]
[1729481611217,0.00362,68952.0,68951.0,0.072526]
[1729481611615,0.0355258,68952.0,68951.0,0.072526]
[1729481612427,0.0355258,68952.0,68951.0,0.074526]
[1729481613528,0.072506,68970.0,68952.0,0.43508]
[1729481613732,0.0800466,68969.0,68959.0,0.3608]
[1729481613927,0.0800466,68968.0,68962.0,0.072514]
[1729481614130,0.0800466,68967.0,68963.0,0.12948]
[1729481614332,0.0800466,68966.0,68963.0,0.12948]
[1729481614630,0.0800466,68965.0,68963.0,0.12948]
[1729481614825,0.03552208,68964.0,68963.0,0.12948]
[1729481615830,0.03552208,68964.0,68963.0,0.13048]
[1729481616129,0.03552208,68964.0,68963.0,0.13148]
[1729481617033,0.00362,68968.0,68963.0,0.13148]
[1729481617337,0.072511,68965.0,68963.0,0.002]
[1729481617630,0.03551879,68964.0,68963.0,0.002]
[1729481618835,0.072511,68965.0,68963.0,0.002]
[1729481619032,0.072511,68965.0,68963.0,0.001]
[1729481619227,0.072511,68965.0,68963.0,0.13148]
[1729481619820,0.00362,68968.0,68963.0,0.13048]
[1729481620026,0.00362,68968.0,68965.0,0.07251]
[1729481620730,0.07251,68966.0,68964.0,0.12948]
[1729481622334,0.00362,68968.0,68964.0,0.12948]
[1729481622635,0.00362,68968.0,68965.0,0.072511]
[1729481623137,0.00362,68968.0,68966.0,0.072509]
[1729481623532,0.072504,68972.0,68966.0,0.072509]
[1729481624222,0.076125,68971.0,68966.0,0.072509]
[1729481625332,0.076125,68971.0,68966.0,0.073509]
[1729481625933,0.00362,68971.0,68966.0,0.073509]
[1729481626138,0.072506,68970.0,68966.0,0.074509]
[1729481626830,0.0800358,68969.0,68966.0,0.074509]
[1729481627134,0.0800358,68968.0,68966.0,0.074509]
[1729481627333,0.072506,68970.0,68967.0,0.0519642]
[1729481628140,0.072507,68969.0,68967.0,0.0519642]
[1729481628830,0.072508,68968.0,68966.0,0.001]
[1729481629030,0.072508,68968.0,68966.0,0.134]
[1729481629339,0.072508,68968.0,68966.0,0.133]
[1729481629638,0.072508,68968.0,68967.0,0.002]
[1729481630136,0.072508,68968.0,68967.0,0.001]
[1729481630440,0.072508,68968.0,68966.0,0.002]
[1729481631333,0.15897627,68967.0,68966.0,0.002]
[1729481631738,0.00362,68971.0,68966.0,0.001]
[1729481631946,0.00362,68971.0,68967.0,0.002]
[1729481632642,0.00362,68971.0,68965.0,0.204511]
[1729481632842,0.076125,68971.0,68966.0,0.002]
[1729481633435,0.076125,68971.0,68966.0,0.0331]
[1729481633642,0.076125,68971.0,68967.0,0.002]
[1729481635245,0.076125,68971.0,68966.0,0.0351]
[1729481635646,0.076125,68971.0,68966.0,0.0341]
[1729481635943,0.076125,68971.0,68967.0,0.134]
[1729481636334,0.00362,68971.0,68970.0,0.072506]
[1729481636832,0.072495,68981.0,68973.0,0.072502]
[1729481637041,0.072495,68981.0,68974.0,0.0315]
[1729481637345,0.072495,68981.0,68974.0,0.104001]
[1729481637640,0.00362,68980.0,68975.0,0.0725]
[1729481639340,0.072499,68977.0,68975.0,0.134]
[1729481639844,0.072499,68977.0,68975.0,0.132]
[1729481640443,0.072499,68977.0,68974.0,0.132]
[1729481640831,0.00362,68980.0,68974.0,0.132]
[1729481641737,0.00362,68980.0,68976.0,0.072499]
[1729481643244,0.00362,68980.0,68974.0,0.1637]
[1729481643440,0.00362,68980.0,68977.0,0.072498]
[1729481645750,0.00362,68980.0,68978.0,0.072497]
[1729481649943,0.0800241,68979.0,68974.0,0.15737281]
[1729481650150,0.0800241,68978.0,68976.0,0.072499]
[1729481650453,0.0800241,68977.0,68976.0,0.072499]
[1729481650844,0.0355121,68977.0,68976.0,0.204499]
[1729481651156,0.0355121,68977.0,68976.0,0.0595]
[1729481651453,0.0800241,68977.0,68976.0,0.0595]
[1729481651645,0.0355121,68977.0,68976.0,0.0595]
[1729481652046,0.0800241,68977.0,68974.0,0.001]
[1729481652246,0.0800241,68976.0,68975.0,0.0725]
[1729481652546,0.0355121,68976.0,68975.0,0.0725]
[1729481653344,0.0355121,68976.0,68975.0,0.0765]
[1729481654856,0.0355121,68976.0,68975.0,0.0805]
[1729481655055,0.0800241,68979.0,68975.0,0.0805]
[1729481655355,0.08002461,68978.0,68975.0,0.0805]
[1729481655551,0.08002461,68977.0,68975.0,0.0805]
[1729481655747,0.08002461,68976.0,68975.0,0.0805]
[1729481655951,0.08002461,68979.0,68975.0,0.0805]
[1729481656147,0.08002461,68978.0,68975.0,0.0805]
[1729481656347,0.08002461,68977.0,68975.0,0.0805]
[1729481656548,0.00362,68980.0,68975.0,0.0775]
[1729481656549,0.08002461,68976.0,68975.0,0.0775]
[1729481656753,0.00362,68980.0,68975.0,0.0775]
[1729481656953,0.00362,68980.0,68975.0,0.0765]
[1729481657155,0.00362,68980.0,68975.0,0.0745]
[1729481658052,0.00362,68980.0,68975.0,0.0735]
[1729481659063,0.00362,68980.0,68975.0,0.0765]
[1729481659653,0.00362,68980.0,68975.0,0.0725]
[1729481660855,0.072496,68979.0,68973.0,0.1560004]
[1729481661266,0.072496,68979.0,68973.0,0.2285024]
[1729481661952,0.072496,68979.0,68974.0,0.13332]
[1729481662757,0.072496,68979.0,68975.0,0.13332]
[1729481664560,0.072496,68979.0,68975.0,0.002]
[1729481664762,0.08002557,68978.0,68975.0,0.13532]
[1729481664962,0.15929954,68976.0,68975.0,0.13532]
[1729481665163,0.23932511,68976.0,68975.0,0.13532]
[1729481665469,0.19481229,68976.0,68975.0,0.002]
[1729481665660,0.23960728,68976.0,68975.0,0.002]
[1729481665863,0.19509446,68976.0,68975.0,0.002]
[1729481666057,0.08002557,68976.0,68975.0,0.001]
[1729481666269,0.08002557,68976.0,68975.0,0.005]
[1729481666965,0.08002557,68976.0,68975.0,0.006]
[1729481667868,0.08002557,68976.0,68975.0,0.008]
[1729481668264,0.08364557,68976.0,68975.0,0.008]
[1729481669165,0.00362,68976.0,68975.0,0.008]
[1729481669371,0.08364578,68976.0,68975.0,0.008]
[1729481670169,0.08364579,68976.0,68975.0,0.008]
[1729481671867,0.00362,68976.0,68975.0,0.008]
[1729481680473,0.076119,68976.0,68975.0,0.008]
[1729481680975,0.076119,68976.0,68963.0,0.12829471]
[1729481680976,0.07251,68966.0,68963.0,0.12829471]
[1729481681180,0.07251,68966.0,68963.0,0.00217471]
[1729481681683,0.07251,68966.0,68963.0,0.02519282]
[1729481683084,0.07251,68966.0,68963.0,0.15131282]
[1729481683484,0.07251,68966.0,68963.0,0.17731282]
[1729481686079,0.07251,68966.0,68963.0,0.05119282]
[1729481686886,0.03551923,68965.0,68963.0,0.05119282]
[1729481687083,0.03551923,68964.0,68963.0,0.05119282]
[1729481688089,0.03551923,68964.0,68963.0,0.05219282]
[1729481688387,0.03551923,68964.0,68963.0,0.17831282]
[1729481688777,0.03551923,68964.0,68963.0,0.20891282]
[1729481689186,0.03551923,68964.0,68963.0,0.17831282]
[1729481689890,0.08004018,68964.0,68963.0,0.16531282]
[1729481690077,0.08004018,68964.0,68963.0,0.17931282]
[1729481690886,0.03551923,68964.0,68963.0,0.17931282]
[1729481694985,0.072508,68968.0,68963.0,0.17931282]
[1729481696394,0.072508,68968.0,68963.0,0.16531282]
[1729481696593,0.072508,68968.0,68963.0,0.04719282]
[1729481696886,0.072508,68968.0,68963.0,0.17331282]
[1729481697091,0.00362,68967.0,68963.0,0.17331282]
[1729481697689,0.00362,68967.0,68963.0,0.04719282]
[1729481697995,0.00362,68967.0,68963.0,0.17331282]
[1729481698195,0.00362,68967.0,68963.0,0.17431282]
[1729481699894,0.00362,68967.0,68963.0,0.16331282]
[1729481700101,0.00362,68967.0,68963.0,0.17531282]
[1729481700390,0.00362,68967.0,68963.0,0.04919282]
[1729481700594,0.072512,68964.0,68963.0,0.04919282]
[1729481701184,0.07252,68956.0,68955.0,0.05792336]
[1729481701388,0.3608,68962.0,68952.0,0.17724336]
[1729481701598,0.072523,68954.0,68952.0,0.0810687]
[1729481701795,0.072523,68954.0,68952.0,0.02314534]
[1729481701990,0.0800509,68953.0,68948.0,0.11932]
[1729481702297,0.0800509,68953.0,68943.0,0.433334]
[1729481702499,0.0800509,68953.0,68947.0,0.11932]
[1729481702994,0.0800509,68953.0,68950.0,0.38292729]
[1729481703493,0.0800509,68952.0,68950.0,0.38292729]
[1729481703700,0.03552399,68951.0,68950.0,0.38292729]
[1729481703905,0.08005114,68957.0,68950.0,0.38292729]
[1729481704088,0.001,68953.0,68950.0,0.46845429]
[1729481704404,0.03552297,68952.0,68951.0,0.072525]
[1729481704596,0.03552299,68952.0,68951.0,0.072525]
[1729481704894,0.03552295,68952.0,68951.0,0.072525]
[1729481705488,0.002,68953.0,68951.0,0.072525]
[1729481705689,0.001,68953.0,68951.0,0.072525]
[1729481705889,0.001,68952.0,68951.0,0.072525]
[1729481706285,0.001,68952.0,68951.0,0.507605]
[1729481706596,0.001,68953.0,68951.0,0.507605]
[1729481706597,0.001,68953.0,68951.0,0.520605]
[1729481706789,0.001,68953.0,68952.0,0.43508]
[1729481707185,0.16320171,68967.0,68962.0,0.072514]
[1729481707388,0.2041033,68966.0,68962.0,0.072514]
[1729481707593,0.04452231,68965.0,68962.0,0.072514]
[1729481707801,0.04452231,68964.0,68962.0,0.072514]
[1729481708094,0.16320171,68967.0,68962.0,0.072514]
[1729481708095,0.04452231,68963.0,68962.0,0.072514]
[1729481709000,0.04452231,68963.0,68962.0,0.085514]
[1729481709387,0.0445214,68963.0,68962.0,0.085514]
[1729481709799,0.0455214,68963.0,68962.0,0.099514]
[1729481710003,0.001,68963.0,68962.0,0.099514]
[1729481710698,0.002,68963.0,68962.0,0.15743736]
[1729481713601,0.00362,68967.0,68966.0,0.07251]
[1729481714909,0.00462,68967.0,68966.0,0.08351]
[1729481715804,0.00562,68967.0,68966.0,0.09551]
[1729481717004,0.08565121,68967.0,68966.0,0.09551]
[1729481717305,0.13016716,68967.0,68966.0,0.09551]
[1729481720310,0.05013596,68967.0,68966.0,0.09551]
[1729481721709,0.00023596,68967.0,68966.0,0.09551]
[1729481721913,0.072484,68991.0,68968.0,0.072508]
[1729481722105,0.0319,68993.0,68966.0,0.74808782]
[1729481722106,0.072486,68989.0,68978.0,0.072497]
[1729481722412,0.00183,68986.0,68979.0,0.11932]
[1729481722806,0.00183,68986.0,68978.0,0.072497]
[1729481723110,0.00183,68986.0,68980.0,0.11932]
[1729481723507,0.03551134,68985.0,68980.0,0.11932]
[1729481724504,0.0355114,68984.0,68980.0,0.11932]
[1729481724813,0.0355114,68984.0,68980.0,0.12032]
[1729481726307,0.0405114,68984.0,68980.0,0.12032]
[1729481726704,0.0405114,68984.0,68980.0,0.14186238]
[1729481726907,0.0455114,68984.0,68980.0,0.14186238]
[1729481727310,0.0768114,68984.0,68980.0,0.14186238]
[1729481731306,0.0768114,68984.0,68980.0,0.11932]
[1729481731507,0.0768114,68984.0,68976.0,0.3608]
[1729481731709,0.072496,68979.0,68976.0,0.50313124]
[1729481731915,0.0305,68978.0,68976.0,0.50313124]
[1729481732621,0.0305,68978.0,68976.0,0.02301124]
[1729481732916,0.0305,68978.0,68974.0,0.11932]
[1729481733820,0.0305,68978.0,68976.0,0.001]
[1729481734826,0.0305,68978.0,68976.0,0.002]
[1729481735321,0.0305,68978.0,68976.0,0.001]
[1729481736220,0.3913,68978.0,68976.0,0.002]
[1729481738612,0.0305,68978.0,68976.0,0.002]
[1729481738814,0.3913,68978.0,68976.0,0.002]
[1729481739918,0.0305,68978.0,68976.0,0.002]